bitfinex-derivatives/quotes_BTCF0:USTF0_20241116
["timestamp","ask_amount","ask_price","bid_price","bid_amount"]
[1731799891058,0.13163813,90665.0,90662.0,0.055113]
[1731799891443,0.13163813,90665.0,90662.0,0.16541461]
[1731799891647,0.13163813,90665.0,90662.0,0.055113]
[1731799891950,0.18675013,90665.0,90663.0,0.11029796]
[1731799892150,0.055112,90665.0,90663.0,0.11029796]
[1731799892354,0.13163813,90665.0,90663.0,0.11029796]
[1731799892552,9.174e-05,90666.0,90663.0,0.11029796]
[1731799892752,9.174e-05,90666.0,90665.0,0.055112]
[1731799893753,9.174e-05,90666.0,90665.0,0.16540753]
[1731799900763,9.174e-05,90666.0,90665.0,0.27185047]
[1731799901170,9.174e-05,90666.0,90665.0,0.16540753]
[1731799902771,9.174e-05,90666.0,90665.0,0.08840753]
[1731799903474,9.174e-05,90666.0,90665.0,0.14351953]
[1731799908474,9.174e-05,90666.0,90665.0,0.34158608]
[1731799908768,9.174e-05,90666.0,90665.0,0.14351953]
[1731799908966,9.174e-05,90666.0,90665.0,0.34158608]
[1731799911275,9.174e-05,90666.0,90665.0,0.14351953]
[1731799911460,9.174e-05,90666.0,90665.0,0.08840753]
[1731799911769,9.174e-05,90666.0,90665.0,0.37425106]
[1731799911770,0.05520274,90666.0,90665.0,0.37425106]
[1731799911964,0.05520274,90666.0,90665.0,0.37425822]
[1731799912157,0.05520274,90666.0,90665.0,0.17632753]
[1731799912671,0.18684087,90666.0,90665.0,0.17632753]
[1731799913269,0.18684087,90666.0,90665.0,0.08840753]
[1731799913461,0.13172987,90666.0,90665.0,0.08840753]
[1731799914161,0.13172987,90666.0,90665.0,0.28638933]
[1731799914362,0.13172987,90666.0,90665.0,0.08840753]
[1731799914565,9.174e-05,90666.0,90665.0,0.08840753]
[1731799914766,0.13172987,90666.0,90665.0,0.08840753]
[1731799914967,9.174e-05,90666.0,90665.0,0.08840753]
[1731799915564,0.13172987,90666.0,90665.0,0.08840753]
[1731799916765,9.174e-05,90666.0,90665.0,0.08840753]
[1731799917277,0.13172987,90666.0,90665.0,0.08840753]
[1731799917465,9.174e-05,90666.0,90665.0,0.08840753]
[1731799917773,9.174e-05,90666.0,90665.0,0.01140753]
[1731799917964,0.13190616,90666.0,90665.0,0.01140753]
[1731799918164,9.174e-05,90666.0,90665.0,0.01140753]
[1731799919277,0.13190832,90666.0,90665.0,0.01140753]
[1731799919676,9.174e-05,90666.0,90665.0,0.01140753]
[1731799920764,0.13190832,90666.0,90665.0,0.20969803]
[1731799920964,9.174e-05,90666.0,90665.0,0.20969803]
[1731799921174,9.174e-05,90666.0,90664.0,0.19832374]
[1731799921175,0.055112,90665.0,90664.0,0.19832374]
[1731799921362,0.055113,90664.0,90661.0,0.19832374]
[1731799921678,0.055113,90664.0,90662.0,0.25343674]
[1731799921878,0.055113,90664.0,90663.0,0.19832374]
[1731799922173,0.055113,90664.0,90662.0,0.055113]
[1731799922174,0.055113,90664.0,90662.0,0.25343674]
[1731799922579,0.055113,90664.0,90662.0,0.055113]
[1731799923478,0.055113,90663.0,90661.0,0.19832374]
[1731799923666,0.055113,90663.0,90656.0,0.31920573]
[1731799923667,0.055113,90663.0,90659.0,0.19832374]
[1731799923872,0.13184795,90660.0,90659.0,0.19832374]
[1731799924268,0.13184795,90660.0,90658.0,0.19832374]
[1731799924505,0.13183644,90661.0,90659.0,0.30862231]
[1731799924670,0.18695044,90661.0,90659.0,0.19832374]
[1731799924976,0.055114,90661.0,90660.0,0.11030344]
[1731799925383,0.18694711,90661.0,90660.0,0.11030344]
[1731799925581,0.055114,90661.0,90660.0,0.11030344]
[1731799925885,0.055115,90660.0,90658.0,0.19832374]
[1731799926074,0.18694147,90660.0,90659.0,0.11030161]
[1731799926578,0.055115,90660.0,90659.0,0.11030161]
[1731799931176,0.18694147,90660.0,90659.0,0.11030161]
[1731799931588,0.54774147,90660.0,90659.0,0.11030161]
[1731799931890,0.54774147,90660.0,90657.0,0.19832374]
[1731799931891,0.055116,90658.0,90657.0,0.19832374]
[1731799932892,0.055118,90654.0,90643.0,0.055125]
[1731799933205,0.055118,90654.0,90642.0,0.50313604]
[1731799933775,0.055118,90654.0,90642.0,0.3966931]
[1731799934081,0.055118,90654.0,90644.0,0.055124]
[1731799936185,0.0536223,90654.0,90642.0,0.00056]
[1731799936490,0.055126,90641.0,90638.0,0.142968]
[1731799936780,0.3608,90645.0,90638.0,0.142968]
[1731799936987,0.055127,90640.0,90638.0,0.142968]
[1731799937291,0.055127,90640.0,90639.0,0.11031682]
[1731799938389,0.3608,90645.0,90639.0,0.11031682]
[1731799938696,0.055124,90645.0,90643.0,0.055125]
[1731799939395,0.055124,90645.0,90644.0,0.11032717]
[1731799940779,0.1316175,90650.0,90637.0,0.143009]
[1731799940986,0.3608,90651.0,90643.0,0.11032108]
[1731799940987,0.1316175,90649.0,90643.0,0.11032108]
[1731799941182,0.055124,90644.0,90643.0,0.11032108]
[1731799941494,0.055124,90644.0,90623.0,0.39323072]
[1731799941495,0.055131,90634.0,90623.0,0.02205905]
[1731799941705,0.055131,90634.0,90626.0,0.08788]
[1731799941706,0.3608,90633.0,90626.0,0.08788]
[1731799942085,0.3608,90633.0,90632.0,0.11211925]
[1731799947210,0.3608,90633.0,90632.0,0.00179695]
[1731799947784,0.3608,90633.0,90625.0,0.08788]
[1731799947986,0.055135,90626.0,90625.0,0.01267695]
[1731799948387,0.055135,90626.0,90625.0,0.12301264]
[1731799948787,0.055135,90626.0,90625.0,0.11033569]
[1731799948997,0.055135,90626.0,90625.0,0.11041758]
[1731799949295,0.055135,90626.0,90625.0,8.189e-05]
[1731799949598,0.055135,90626.0,90625.0,0.1104261]
[1731799950291,0.11048795,90626.0,90625.0,0.1104261]
[1731799950491,0.055135,90626.0,90625.0,0.1104261]
[1731799952200,0.47053418,90626.0,90625.0,8.189e-05]
[1731799952402,0.80157418,90626.0,90625.0,8.189e-05]
[1731799952698,0.80157418,90626.0,90625.0,8.9e-06]
[1731799952891,0.88945418,90626.0,90625.0,8.9e-06]
[1731799953200,1.05397605,90626.0,90625.0,8.9e-06]
[1731799953595,0.88945418,90626.0,90625.0,8.9e-06]
[1731799954800,0.9430978,90626.0,90625.0,8.9e-06]
[1731799955502,0.94309785,90626.0,90625.0,8.9e-06]
[1731799955895,1.24309785,90626.0,90625.0,8.9e-06]
[1731799958402,1.44052395,90626.0,90625.0,8.9e-06]
[1731799958603,1.24309785,90626.0,90625.0,8.9e-06]
[1731799958906,0.94309785,90626.0,90625.0,8.9e-06]
[1731799959804,1.04954079,90626.0,90625.0,8.9e-06]
[1731799960298,1.04954178,90626.0,90625.0,8.9e-06]
[1731799961103,1.04950178,90626.0,90625.0,8.9e-06]
[1731799962502,1.04950178,90626.0,90603.0,0.055149]
[1731799962707,0.055149,90604.0,90603.0,0.055149]
[1731799962889,0.3608,90610.0,90595.0,0.06760421]
[1731799963090,0.3608,90610.0,90603.0,0.11034421]
[1731799963304,0.055149,90604.0,90603.0,0.11034421]
[1731799963504,0.055149,90604.0,90603.0,0.00012572]
[1731799964394,0.055149,90604.0,90603.0,0.11049673]
[1731799965707,0.055149,90604.0,90603.0,0.16564573]
[1731799967510,0.3608,90618.0,90603.0,0.44161673]
[1731799967700,0.3608,90618.0,90617.0,0.055141]
[1731799968313,0.3608,90618.0,90617.0,0.16551201]
[1731799969556,0.05569549,90623.0,90617.0,0.21681395]
[1731799969699,0.05569549,90623.0,90622.0,0.055138]
[1731799969902,0.416936,90625.0,90624.0,0.055137]
[1731799970098,0.415936,90625.0,90624.0,0.055137]
[1731799970413,0.54719442,90625.0,90624.0,0.16549096]
[1731799970612,0.49205842,90625.0,90624.0,0.16549096]
[1731799970813,0.3608,90625.0,90624.0,0.16549096]
[1731799971820,0.415936,90625.0,90624.0,0.11035396]
[1731799972113,0.3608,90625.0,90610.0,0.0951]
[1731799972311,0.18667329,90624.0,90611.0,0.055144]
[1731799972617,0.13153629,90623.0,90619.0,0.055139]
[1731799972911,0.18667329,90624.0,90619.0,0.055139]
[1731799973214,0.18667329,90624.0,90620.0,0.11035396]
[1731799973602,0.18667329,90624.0,90610.0,0.0951]
[1731799973799,0.18667329,90624.0,90611.0,0.11034848]
[1731799973800,0.055137,90624.0,90611.0,0.11034848]
[1731799974003,0.055137,90624.0,90622.0,0.055138]
[1731799974612,0.055137,90624.0,90610.0,0.0951]
[1731799974613,0.36188,90625.0,90623.0,0.11034848]
[1731799974915,0.3608,90625.0,90624.0,0.055137]
[1731799975214,0.3608,90625.0,90624.0,0.16548426]
[1731799975417,0.49233629,90625.0,90624.0,0.16548426]
[1731799976104,0.3608,90625.0,90624.0,0.16548426]
[1731799976510,0.13153629,90629.0,90627.0,0.055135]
[1731799976709,0.05367943,90630.0,90628.0,0.0626]
[1731799976911,0.13163826,90629.0,90628.0,0.0927]
[1731799977320,0.055132,90632.0,90628.0,0.0927]
[1731799977521,0.13164604,90629.0,90628.0,0.20304543]
[1731799977717,0.13164604,90629.0,90628.0,0.25817943]
[1731799977917,0.13164604,90630.0,90628.0,0.18117943]
[1731799978424,0.13164604,90631.0,90629.0,0.055134]
[1731799978615,0.13164604,90632.0,90630.0,0.055133]
[1731799978818,0.13164604,90633.0,90630.0,0.055133]
[1731799979011,0.13164604,90634.0,90630.0,0.055133]
[1731799979211,0.13164604,90634.0,90631.0,0.11033873]
[1731799979418,0.13164604,90635.0,90632.0,0.055132]
[1731799979615,0.4711514,90636.0,90633.0,0.055131]
[1731799979616,0.54770845,90636.0,90633.0,0.055131]
[1731799979819,0.54666844,90636.0,90635.0,0.05513]
[1731799980520,0.54666844,90636.0,90635.0,0.16546447]
[1731799980521,0.4150224,90636.0,90635.0,0.16546447]
[1731799985019,0.0542224,90636.0,90635.0,0.16546447]
[1731799985221,0.055128,90638.0,90635.0,0.16546447]
[1731799987022,0.3608,90639.0,90638.0,0.055128]
[1731799987627,0.3608,90639.0,90638.0,0.16545882]
[1731799987825,0.055126,90641.0,90638.0,0.16545882]
[1731799988032,0.10985408,90641.0,90638.0,0.16545882]
[1731799989033,0.10985408,90641.0,90639.0,0.055127]
[1731799989034,0.05472808,90641.0,90639.0,0.055127]
[1731799989328,0.00165541,90645.0,90628.0,0.0157]
[1731799989329,0.00165541,90645.0,90643.0,0.055125]
[1731799989933,0.00165541,90645.0,90644.0,0.10644294]
[1731799990132,0.00165541,90645.0,90644.0,0.11678524]
[1731799990328,0.00165541,90645.0,90644.0,0.22710693]
[1731799990534,0.088316,90658.0,90649.0,0.055121]
[1731799990535,0.13164604,90656.0,90649.0,0.055121]
[1731799990732,0.088316,90658.0,90657.0,0.055117]
[1731799990733,0.0332,90658.0,90657.0,0.055117]
[1731799990927,0.08648083,90658.0,90657.0,0.055117]
[1731799991123,0.0332,90658.0,90657.0,0.16543808]
[1731799992534,0.0332,90658.0,90657.0,0.16551889]
[1731799992535,0.08812469,90658.0,90657.0,0.16551889]
[1731799992730,0.0332,90658.0,90657.0,0.16551889]
[1731799993032,0.0332,90658.0,90657.0,0.08851889]
[1731799993537,0.0332,90658.0,90657.0,0.14767727]
[1731799994422,0.0332,90658.0,90657.0,0.14767718]
[1731799994818,0.054199,90662.0,90657.0,0.09256018]
[1731799995025,0.064,90665.0,90660.0,0.055115]
[1731799995226,0.064,90665.0,90661.0,0.00404129]
[1731799995433,0.064,90665.0,90660.0,0.055115]
[1731799995629,0.055112,90664.0,90662.0,0.11030526]
[1731799996132,0.11878326,90665.0,90657.0,8.081e-05]
[1731799996133,0.055114,90661.0,90657.0,8.081e-05]
[1731799996338,0.055114,90661.0,90658.0,0.00404177]
[1731799996534,0.055114,90661.0,90658.0,0.11029918]
[1731799998242,0.05478326,90665.0,90664.0,0.055112]
[1731799998442,9.174e-05,90666.0,90664.0,0.055112]
[1731799998636,9.174e-05,90666.0,90665.0,0.10644294]
[1731799998936,9.174e-05,90666.0,90665.0,0.21674577]
[1731799999555,9.174e-05,90666.0,90665.0,0.11030283]
[1731800001139,0.36089174,90666.0,90665.0,0.11030283]
[1731800001455,0.055116,90658.0,90657.0,8.081e-05]
[1731800002126,0.055116,90658.0,90657.0,0.11038607]
[1731800002937,0.13144019,90662.0,90657.0,0.11038607]
[1731800003137,0.055114,90662.0,90657.0,0.16550207]
[1731800003531,0.13144019,90662.0,90657.0,0.11038607]
[1731800003832,0.055115,90659.0,90657.0,0.11038607]
[1731800006735,0.055115,90659.0,90657.0,0.16550207]
[1731800007746,0.055115,90659.0,90657.0,0.08850207]
[1731800008448,0.055115,90659.0,90657.0,0.03338607]
[1731800008852,0.055115,90659.0,90658.0,0.00013985]
[1731800009351,0.18655519,90659.0,90658.0,0.00013985]
[1731800009531,0.18655519,90659.0,90658.0,0.11044451]
[1731800011545,0.055115,90659.0,90658.0,0.11044451]
[1731800016647,0.21918803,90659.0,90658.0,0.11044451]
[1731800017543,0.10872737,90659.0,90658.0,0.11044451]
[1731800018842,0.10872736,90659.0,90658.0,0.11044451]
[1731800020351,0.10872736,90659.0,90658.0,0.12078535]
[1731800022748,0.10872736,90659.0,90658.0,0.04378535]
[1731800027753,0.10872736,90659.0,90658.0,0.01034084]
[1731800027959,0.10872736,90659.0,90641.0,0.055126]
[1731800027960,0.055123,90646.0,90641.0,0.055126]
[1731800028155,0.055123,90646.0,90645.0,0.01199677]
[1731800028156,0.46954381,90646.0,90645.0,0.01199677]
[1731800028356,0.46954381,90646.0,90645.0,0.00165435]
[1731800028357,0.66746639,90646.0,90645.0,0.00165435]
[1731800028561,0.66746639,90646.0,90645.0,0.1119584]
[1731800028562,0.46954381,90646.0,90645.0,0.1119584]
[1731800028955,0.50214381,90646.0,90645.0,0.1119584]
[1731800029576,0.69993414,90646.0,90645.0,0.1119584]
[1731800030364,0.50214381,90646.0,90645.0,0.1119584]
[1731800030662,0.69989705,90646.0,90645.0,0.1119584]
[1731800031052,0.50214381,90646.0,90645.0,0.1119584]
[1731800031661,0.6998527,90646.0,90645.0,0.1119584]
[1731800031863,0.6998527,90646.0,90645.0,0.0131078]
[1731800031864,0.50214381,90646.0,90645.0,0.0131078]
[1731800032063,0.50214381,90646.0,90622.0,0.7316]
[1731800032359,0.055133,90631.0,90630.0,0.055133]
[1731800032562,0.055133,90631.0,90630.0,0.06547646]
[1731800033455,0.055133,90631.0,90630.0,0.17581459]
[1731800035254,0.055133,90631.0,90630.0,0.12068159]
[1731800035456,0.18693509,90631.0,90630.0,0.11033813]
[1731800035657,0.055133,90631.0,90630.0,0.11033813]
[1731800035963,0.055133,90631.0,90628.0,0.10966532]
[1731800035964,0.055134,90629.0,90628.0,0.10966532]
[1731800036262,0.055134,90629.0,90628.0,0.01034427]
[1731800036463,0.415934,90629.0,90628.0,0.11033813]
[1731800036672,0.54789873,90629.0,90628.0,0.11033813]
[1731800036859,0.39404001,90637.0,90635.0,0.05513]
[1731800036860,0.1319613,90636.0,90635.0,0.05513]
[1731800037058,0.1319613,90638.0,90636.0,0.43723728]
[1731800037262,0.1319613,90648.0,90646.0,0.055123]
[1731800037471,0.1319613,90652.0,90647.0,0.11658087]
[1731800037665,0.1319613,90653.0,90650.0,0.055121]
[1731800037862,0.1319613,90654.0,90645.0,0.0314]
[1731800038168,0.1319613,90652.0,90651.0,0.165435]
[1731800038366,0.1319613,90652.0,90651.0,0.05512]
[1731800038765,0.1319613,90652.0,90651.0,0.165435]
[1731800039067,0.1870813,90652.0,90637.0,0.055129]
[1731800039369,0.1870813,90652.0,90632.0,0.26408873]
[1731800039370,0.055124,90645.0,90640.0,0.055127]
[1731800039556,0.055124,90645.0,90641.0,0.01034173]
[1731800039757,0.055124,90645.0,90642.0,0.01034173]
[1731800039957,0.055124,90645.0,90643.0,0.01034173]
[1731800040257,0.055124,90645.0,90644.0,0.01034173]
[1731800040657,0.055124,90645.0,90644.0,0.12066464]
[1731800041062,0.1870853,90645.0,90644.0,0.11032291]
[1731800041273,0.055124,90645.0,90644.0,0.11032291]
[1731800041570,0.055127,90641.0,90636.0,0.055129]
[1731800041770,0.1319414,90638.0,90637.0,0.11032108]
[1731800041959,0.1319414,90640.0,90638.0,0.055128]
[1731800042665,0.1870684,90641.0,90639.0,0.12067107]
[1731800042869,0.13194707,90640.0,90639.0,0.11032839]
[1731800043374,0.18707407,90641.0,90639.0,0.11032839]
[1731800043980,0.24128827,90641.0,90639.0,0.11032839]
[1731800044666,0.13194707,90641.0,90639.0,0.16545539]
[1731800044871,0.19624707,90646.0,90640.0,0.01034265]
[1731800045176,0.19624707,90646.0,90641.0,0.01034265]
[1731800045375,0.13194707,90645.0,90642.0,0.01034265]
[1731800045672,0.13194707,90645.0,90635.0,0.19387728]
[1731800045673,0.13194707,90645.0,90643.0,0.01034265]
[1731800045859,0.13194707,90645.0,90644.0,0.06546665]
[1731800046275,0.27292182,90646.0,90644.0,0.06546665]
[1731800046475,0.13194707,90645.0,90644.0,0.16544569]
[1731800047359,0.13194707,90645.0,90644.0,0.17578833]
[1731800047764,0.27292182,90646.0,90644.0,0.17578833]
[1731800047974,0.14097475,90646.0,90645.0,0.01034264]
[1731800048672,0.14097475,90646.0,90645.0,0.12066372]
[1731800049979,0.27295777,90646.0,90645.0,0.12066372]
[1731800050291,0.14097475,90646.0,90645.0,0.12066372]
[1731800050979,0.08585175,90646.0,90645.0,0.12066372]
[1731800051283,0.08585175,90646.0,90645.0,0.12066366]
[1731800052881,0.08585175,90646.0,90645.0,0.04366366]
[1731800053876,0.16475261,90652.0,90645.0,0.39412108]
[1731800054075,0.13204317,90649.0,90647.0,0.055123]
[1731800054271,0.0303,90662.0,90651.0,0.05512]
[1731800054272,0.13204317,90653.0,90651.0,0.05512]
[1731800054474,0.13204317,90654.0,90653.0,0.055119]
[1731800054774,0.13203632,90654.0,90653.0,0.06546065]
[1731800054970,0.13203632,90655.0,90653.0,0.01034165]
[1731800055171,0.13203632,90655.0,90654.0,0.06545965]
[1731800055392,0.13203632,90657.0,90654.0,0.01034165]
[1731800055684,0.13203198,90657.0,90656.0,0.055117]
[1731800055885,0.0312,90659.0,90656.0,0.01034165]
[1731800056087,0.0312,90659.0,90658.0,0.055116]
[1731800056266,0.0312,90659.0,90658.0,0.06545765]
[1731800056471,0.0312,90659.0,90658.0,0.055116]
[1731800056888,0.0312,90659.0,90658.0,0.16542248]
[1731800066781,0.16475261,90663.0,90662.0,0.055114]
[1731800066981,0.57960251,90664.0,90662.0,0.055114]
[1731800067387,0.57960251,90664.0,90663.0,0.11030405]
[1731800067794,0.57960251,90664.0,90663.0,0.03330405]
[1731800068477,0.4148499,90664.0,90663.0,0.03330405]
[1731800068683,0.0540499,90664.0,90663.0,0.03330405]
[1731800068880,0.16475261,90665.0,90663.0,0.08841705]
[1731800069603,9.174e-05,90666.0,90664.0,0.055112]
[1731800069794,0.16484435,90666.0,90664.0,0.055112]
[1731800070288,0.16484435,90666.0,90665.0,0.11029614]
[1731800071993,9.174e-05,90666.0,90665.0,0.11029614]
[1731800072500,9.174e-05,90666.0,90665.0,0.12063606]
[1731800072691,9.174e-05,90666.0,90665.0,0.11029614]
[1731800073188,0.05513748,90666.0,90665.0,0.11029614]
[1731800073398,9.174e-05,90666.0,90665.0,0.11029614]
[1731800073602,9.174e-05,90666.0,90665.0,0.12063605]
[1731800074895,0.21995535,90666.0,90665.0,0.11029614]
[1731800075395,0.10881066,90666.0,90665.0,0.11029614]
[1731800075995,0.16440162,90666.0,90665.0,0.11029614]
[1731800076384,0.055116,90658.0,90657.0,0.055116]
[1731800076590,0.055116,90658.0,90657.0,0.06545638]
[1731800076886,0.1650606,90661.0,90659.0,0.055115]
[1731800077092,0.2201746,90662.0,90660.0,0.06545538]
[1731800077398,0.055114,90662.0,90661.0,0.01034038]
[1731800077598,0.1087261,90662.0,90660.0,0.055115]
[1731800077794,0.16508632,90661.0,90660.0,0.055115]
[1731800078199,0.22020032,90662.0,90660.0,0.17575651]
[1731800078394,0.22020032,90662.0,90660.0,0.16541601]
[1731800078600,0.16508632,90661.0,90660.0,0.16541601]
[1731800079098,0.22020032,90662.0,90660.0,0.17575653]
[1731800079293,0.22020032,90662.0,90661.0,0.01034051]
[1731800079495,0.22020032,90662.0,90660.0,0.16541601]
[1731800079496,0.055114,90662.0,90660.0,0.16541601]
[1731800079706,0.16512463,90661.0,90660.0,0.055115]
[1731800079887,0.16512463,90661.0,90660.0,0.06545558]
[1731800080288,0.055114,90662.0,90660.0,0.17575719]
[1731800080500,0.05361055,90661.0,90660.0,0.16541661]
[1731800080701,0.05361055,90661.0,90660.0,0.17575723]
[1731800080891,0.055114,90662.0,90660.0,0.17575723]
[1731800081091,0.055114,90662.0,90661.0,0.01034062]
[1731800081290,0.055114,90662.0,90660.0,0.11030161]
[1731800081291,0.10872511,90662.0,90660.0,0.11030161]
[1731800081503,0.25131424,90662.0,90655.0,0.055118]
[1731800081701,0.22031826,90657.0,90655.0,0.055118]
[1731800081898,0.055117,90657.0,90656.0,0.01034109]
[1731800082091,0.46953136,90657.0,90656.0,0.1206427]
[1731800082288,0.10873136,90657.0,90656.0,0.1206427]
[1731800082898,0.22036356,90657.0,90656.0,0.0436427]
[1731800083103,0.22036388,90657.0,90656.0,0.0436427]
[1731800083309,0.10872995,90657.0,90656.0,0.0436427]
[1731800086199,0.0324,90659.0,90656.0,0.0436427]
[1731800086401,0.05361113,90658.0,90657.0,0.055117]
[1731800086706,0.16531249,90658.0,90657.0,0.055117]
[1731800087206,0.0324,90659.0,90657.0,0.16542348]
[1731800087402,0.16530769,90658.0,90657.0,0.16542348]
[1731800088908,0.0324,90659.0,90657.0,0.16542348]
[1731800089708,0.087515,90659.0,90657.0,0.16542348]
[1731800090309,0.05360971,90658.0,90657.0,0.16542348]
[1731800090611,0.0324,90659.0,90657.0,0.16542348]
[1731800091717,0.05360958,90658.0,90657.0,0.16542348]
[1731800092221,0.0324,90659.0,90657.0,0.16542348]
[1731800092421,0.05360963,90658.0,90657.0,0.16542348]
[1731800093418,0.0324,90659.0,90657.0,0.16542348]
[1731800094409,0.05360967,90658.0,90657.0,0.16542348]
[1731800094720,0.05360955,90658.0,90657.0,0.16542348]
[1731800095020,0.0324,90659.0,90657.0,0.16542348]
[1731800095317,0.0324,90659.0,90657.0,0.36341851]
[1731800095318,0.05360959,90658.0,90657.0,0.36341851]
[1731800095523,0.05360959,90658.0,90657.0,0.16542348]
[1731800096128,0.05360967,90658.0,90657.0,0.16542348]
[1731800096426,0.05360967,90658.0,90657.0,0.36341851]
[1731800096922,0.0324,90659.0,90657.0,0.36341851]
[1731800097327,0.0324,90659.0,90658.0,0.055116]
[1731800097626,0.08600959,90659.0,90658.0,0.055116]
[1731800097935,0.08600959,90659.0,90658.0,0.11030526]
[1731800098310,0.08600959,90659.0,90658.0,0.16542126]
[1731800100512,0.19770313,90664.0,90658.0,0.56602357]
[1731800100714,0.1322671,90661.0,90659.0,0.055115]
[1731800100910,0.1322671,90662.0,90661.0,0.055114]
[1731800101123,9.174e-05,90666.0,90665.0,0.12479431]
[1731800101325,9.174e-05,90666.0,90665.0,0.57303431]
[1731800101529,0.1322671,90670.0,90669.0,0.055109]
[1731800101726,0.1322671,90670.0,90669.0,0.06544719]
[1731800101920,0.1322671,90670.0,90669.0,0.17574941]
[1731800102431,0.1322671,90672.0,90671.0,0.055108]
[1731800102628,0.1322671,90672.0,90671.0,0.13519045]
[1731800102828,0.0306,90682.0,90671.0,0.13519045]
[1731800102829,0.1322671,90673.0,90672.0,0.055107]
[1731800103023,0.16534115,90679.0,90672.0,0.1612246]
[1731800103024,0.1322671,90674.0,90672.0,0.1612246]
[1731800103217,0.16534115,90679.0,90677.0,0.055104]
[1731800103421,0.16534115,90680.0,90679.0,0.055103]
[1731800103829,0.0306,90682.0,90681.0,0.055102]
[1731800104827,0.19565278,90682.0,90681.0,0.16537807]
[1731800105529,0.16529245,90686.0,90681.0,0.21639367]
[1731800105731,0.16529245,90686.0,90685.0,0.0551]
[1731800106533,0.00023967,90686.0,90685.0,0.16537121]
[1731800112829,0.00023967,90686.0,90685.0,0.08837121]
[1731800113424,0.00023967,90686.0,90685.0,0.14347121]
[1731800114332,0.00023967,90686.0,90685.0,0.24958881]
[1731800116437,0.1320866,90686.0,90685.0,0.24958881]
[1731800117622,0.00023967,90686.0,90685.0,0.14347121]
[1731800118941,0.13209245,90686.0,90685.0,0.14347121]
[1731800119651,0.13209245,90686.0,90685.0,0.08837121]
[1731800119652,0.18719145,90686.0,90685.0,0.08837121]
[1731800119829,0.05533867,90686.0,90685.0,0.08837121]
[1731800120732,0.22039145,90686.0,90685.0,0.08837121]
[1731800120933,0.05533867,90686.0,90685.0,0.08837121]
[1731800124746,0.05533867,90686.0,90685.0,0.1580109]
[1731800125329,0.22039145,90686.0,90685.0,0.1580109]
[1731800125743,0.22039145,90686.0,90685.0,0.08837121]
[1731800125945,0.46973651,90686.0,90685.0,0.08837121]
[1731800126146,0.10893651,90686.0,90685.0,0.08837121]
[1731800127241,0.10893734,90686.0,90685.0,0.08837121]
[1731800127950,0.30664047,90686.0,90685.0,0.01137121]
[1731800128133,0.10893734,90686.0,90685.0,0.01137121]
[1731800128943,0.05383834,90686.0,90685.0,0.0810109]
[1731800129847,0.05383834,90686.0,90685.0,0.09134888]
[1731800130044,0.05383834,90686.0,90685.0,0.0810109]
[1731800130251,0.19857492,90686.0,90685.0,0.09134888]
[1731800130451,0.05383834,90686.0,90685.0,0.09134888]
[1731800132061,0.05383326,90686.0,90685.0,0.14644888]
[1731800135858,0.05383326,90686.0,90685.0,0.1361109]
[1731800136677,0.0538336,90686.0,90685.0,0.1361109]
[1731800137951,0.0538336,90686.0,90685.0,0.14644824]
[1731800138746,0.16550435,90686.0,90685.0,0.1361109]
[1731800138943,0.00023967,90686.0,90685.0,0.1361109]
[1731800141160,0.00023967,90686.0,90685.0,0.14644783]
[1731800141854,0.00023967,90686.0,90685.0,0.1361109]
[1731800142057,0.00023967,90686.0,90685.0,0.39971309]
[1731800142556,0.00023967,90686.0,90685.0,0.20575059]
[1731800142760,0.00023967,90686.0,90685.0,0.56655059]
[1731800142959,0.00165449,90689.0,90688.0,0.055098]
[1731800143260,0.00165449,90689.0,90688.0,0.142298]
[1731800143760,0.00165449,90689.0,90688.0,0.25256556]
[1731800144058,0.00165449,90689.0,90688.0,0.32220525]
[1731800144280,0.00165449,90689.0,90688.0,0.42875734]
[1731800144568,0.00165449,90689.0,90688.0,0.32220525]
[1731800145058,0.00165449,90689.0,90688.0,0.33254186]
[1731800145460,0.00165449,90689.0,90688.0,0.38637792]
[1731800149460,0.00165449,90689.0,90688.0,0.29917792]
[1731800149680,0.00165449,90689.0,90688.0,0.38637792]
[1731800150970,0.00165449,90689.0,90688.0,0.29917792]
[1731800151270,0.00165449,90689.0,90688.0,0.38637792]
[1731800153763,0.00042383,90690.0,90688.0,0.31673823]
[1731800153971,0.00042383,90690.0,90689.0,0.1671763]
[1731800154175,0.00042383,90690.0,90689.0,0.0799763]
[1731800154463,0.055097,90689.0,90675.0,0.0872]
[1731800154674,0.055104,90677.0,90676.0,0.01033733]
[1731800154872,0.3608,90678.0,90675.0,0.0872]
[1731800155061,0.3608,90678.0,90676.0,0.11026634]
[1731800156067,0.3608,90678.0,90676.0,0.19746634]
[1731800156262,0.3608,90678.0,90676.0,0.0872]
[1731800156475,0.0308,90677.0,90676.0,0.0872]
[1731800156978,0.085904,90677.0,90676.0,0.19748154]
[1731800157271,0.085904,90677.0,90676.0,0.11028154]
[1731800157778,0.055107,90673.0,90672.0,0.0102]
[1731800158166,0.055107,90673.0,90672.0,0.12048215]
[1731800158681,0.18709359,90673.0,90672.0,0.12048215]
[1731800159071,0.055107,90673.0,90672.0,0.12048215]
[1731800159571,0.088407,90673.0,90672.0,0.12048215]
[1731800160975,0.088407,90673.0,90672.0,0.13082112]
[1731800162979,0.0333,90673.0,90672.0,0.18592812]
[1731800164367,0.13198659,90681.0,90672.0,0.20046081]
[1731800164583,0.001,90686.0,90680.0,0.06963969]
[1731800164876,0.16488659,90689.0,90688.0,0.055098]
[1731800165070,0.0329,90689.0,90688.0,0.15263697]
[1731800165884,0.0329,90689.0,90688.0,0.26290453]
[1731800166579,0.0329,90689.0,90688.0,0.25256556]
[1731800169183,0.0329,90689.0,90688.0,0.32220525]
[1731800169480,0.0329,90689.0,90688.0,0.11026756]
[1731800169873,0.0329,90689.0,90683.0,0.08712]
[1731800169874,0.055099,90686.0,90683.0,0.08712]
[1731800170074,0.13191011,90684.0,90683.0,0.08712]
[1731800170275,0.0551,90685.0,90683.0,0.08712]
[1731800170491,0.0551,90685.0,90684.0,0.11026756]
[1731800170681,0.0551,90685.0,90683.0,0.08712]
[1731800170871,0.13190602,90684.0,90683.0,0.08712]
[1731800171075,0.0551,90685.0,90683.0,0.08712]
[1731800171382,0.0551,90685.0,90683.0,0.19739364]
[1731800172198,0.13190849,90684.0,90683.0,0.19739364]
[1731800172379,0.0551,90685.0,90683.0,0.19739364]
[1731800172786,0.0551,90685.0,90683.0,0.11027364]
[1731800173181,0.0551,90685.0,90676.0,0.08712]
[1731800173490,0.52606468,90686.0,90678.0,0.055103]
[1731800173491,0.1319186,90681.0,90678.0,0.055103]
[1731800173683,0.1319186,90683.0,90678.0,0.055103]
[1731800174078,0.1319186,90682.0,90678.0,0.055103]
[1731800174277,0.1319186,90683.0,90679.0,0.11027303]